[Event "Titled Tuesday Blitz November 07 Early 2023"]
[White "Pinto, Daniel"]
[Black "Starozhilov, Leonid"]
[WhiteFideId "3303144"]
[BlackFideId "14106752"]
[WhiteElo "2477"]
[BlackElo "2687"]
[Result "1-0"]
[Round "5"]
[TimeControl "180+1"]
[Date "2023.11.07"]
[WhiteClock "0:00:05"]
[BlackClock "0:00:05"]
[Board "97"]

1. e4 {[%clk 0:02:57]}  c5 {[%clk 0:03:00]} 2. Nf3 {[%clk 0:02:56]}  Nc6 {[%clk 0:02:59]} 3. Bb5 {[%clk 0:02:56]}  g6 {[%clk 0:02:59]} 4. O-O {[%clk 0:02:55]}  Bg7 {[%clk 0:02:59]} 5. Re1 {[%clk 0:02:53]}  e5 {[%clk 0:02:58]} 6. b4 {[%clk 0:02:53]}  b6 {[%clk 0:02:44]} 7. Bxc6 {[%clk 0:02:37]}  dxc6 {[%clk 0:02:42]} 8. bxc5 {[%clk 0:02:37]}  bxc5 {[%clk 0:02:33]} 9. Bb2 {[%clk 0:02:37]}  Bg4 {[%clk 0:02:22]} 10. d3 {[%clk 0:02:27]}  c4 {[%clk 0:02:17]} 11. dxc4 {[%clk 0:02:11]}  Qxd1 {[%clk 0:01:50]} 12. Rxd1 {[%clk 0:02:12]}  Rb8 {[%clk 0:01:41]} 13. Ba3 {[%clk 0:01:29]}  f5 {[%clk 0:01:29]} 14. Nc3 {[%clk 0:01:24]}  Bf8 {[%clk 0:00:57]} 15. Bxf8 {[%clk 0:01:16]}  Bxf3 {[%clk 0:00:50]} 16. Bg7 {[%clk 0:01:05]}  Bxd1 {[%clk 0:00:32]} 17. Rxd1 {[%clk 0:01:06]}  Rb2 {[%clk 0:00:24]} 18. Bxh8 {[%clk 0:01:06]}  Rxc2 {[%clk 0:00:23]} 19. Bxe5 {[%clk 0:01:05]}  Ke7 {[%clk 0:00:22]} 20. exf5 {[%clk 0:00:55]}  gxf5 {[%clk 0:00:22]} 21. c5 {[%clk 0:00:49]}  Kf7 {[%clk 0:00:20]} 22. f3 {[%clk 0:00:42]}  Ne7 {[%clk 0:00:20]} 23. Kf1 {[%clk 0:00:31]}  Ng6 {[%clk 0:00:19]} 24. Bd4 {[%clk 0:00:29]}  Nh4 {[%clk 0:00:17]} 25. Bf2 {[%clk 0:00:21]}  Ng6 {[%clk 0:00:18]} 26. Rd7+ {[%clk 0:00:20]}  Ke8 {[%clk 0:00:17]} 27. Rd3 {[%clk 0:00:20]}  a5 {[%clk 0:00:17]} 28. Ne2 {[%clk 0:00:07]}  Rxa2 {[%clk 0:00:09]} 29. Nd4 {[%clk 0:00:07]}  Ne7 {[%clk 0:00:07]} 30. Be1 {[%clk 0:00:06]}  a4 {[%clk 0:00:07]} 31. Re3 {[%clk 0:00:05]}  Kf7 {[%clk 0:00:07]} 32. Re5 {[%clk 0:00:04]}  Kf6 {[%clk 0:00:05]} 33. Re6+ {[%clk 0:00:04]}  Kf7 {[%clk 0:00:05]} 34. Rd6 {[%clk 0:00:04]}  Rb2 {[%clk 0:00:02]} 35. Nxc6 {[%clk 0:00:05]}  a3 {[%clk 0:00:03]} 36. Rd7 {[%clk 0:00:03]}  a2 {[%clk 0:00:02]} 37. Rxe7+ {[%clk 0:00:04]}  Kf6 {[%clk 0:00:03]} 38. Ra7 {[%clk 0:00:05]}  Kg5 {[%clk 0:00:02]} 39. Nd4 {[%clk 0:00:04]}  f4 {[%clk 0:00:02]} 40. Ne6+ {[%clk 0:00:05]}  Kf5 {[%clk 0:00:02]} 41. Nd4+ {[%clk 0:00:05]}  Ke5 {[%clk 0:00:03]} 42. Ne2 {[%clk 0:00:04]}  Kd5 {[%clk 0:00:04]} 43. Nxf4+ {[%clk 0:00:04]}  Kxc5 {[%clk 0:00:04]} 44. Nd3+ {[%clk 0:00:04]}  Kb6 {[%clk 0:00:04]} 45. Ra8 {[%clk 0:00:04]}  Kb7 {[%clk 0:00:04]} 46. Ra3 {[%clk 0:00:04]}  Rc2 {[%clk 0:00:05]} 47. Nb4 {[%clk 0:00:04]}  Rc1 {[%clk 0:00:04]} 48. Nxa2 {[%clk 0:00:04]}  Ra1 {[%clk 0:00:05]} 49. Rb3+ {[%clk 0:00:04]}  Kc6 {[%clk 0:00:05]} 50. Nb4+ {[%clk 0:00:05]}  Kb5 {[%clk 0:00:06]} 51. Nc2+ {[%clk 0:00:04]}  Kc4 {[%clk 0:00:05]} 52. Nxa1 {[%clk 0:00:05]} 1-0


[Site "https://www.chess.com"]

[Event "Titled Tuesday Blitz November 07 Early 2023"]
[White "Kosteniuk, Alexandra"]
[Black "vishwa_vijeta"]
[WhiteFideId "4128125"]
[WhiteElo "2679"]
[BlackElo "2471"]
[Result "0-1"]
[Round "5"]
[TimeControl "180+1"]
[Date "2023.11.07"]
[WhiteClock "0:00:52"]
[BlackClock "0:00:19"]
[Board "98"]

1. d4 {[%clk 0:03:00]}  Nf6 {[%clk 0:02:58]} 2. Nf3 {[%clk 0:02:55]}  g6 {[%clk 0:02:58]} 3. c4 {[%clk 0:02:54]}  Bg7 {[%clk 0:02:56]} 4. Nc3 {[%clk 0:02:55]}  d5 {[%clk 0:02:54]} 5. cxd5 {[%clk 0:02:54]}  Nxd5 {[%clk 0:02:51]} 6. Bd2 {[%clk 0:02:54]}  c5 {[%clk 0:02:38]} 7. e4 {[%clk 0:02:48]}  Nxc3 {[%clk 0:02:36]} 8. Bxc3 {[%clk 0:02:49]}  cxd4 {[%clk 0:02:28]} 9. Bxd4 {[%clk 0:02:47]}  Qa5+ {[%clk 0:02:21]} 10. Qd2 {[%clk 0:02:43]}  Qxd2+ {[%clk 0:02:21]} 11. Kxd2 {[%clk 0:02:44]}  O-O {[%clk 0:02:22]} 12. Bxg7 {[%clk 0:02:43]}  Kxg7 {[%clk 0:02:23]} 13. Ke3 {[%clk 0:02:40]}  Nc6 {[%clk 0:02:20]} 14. Rc1 {[%clk 0:02:39]}  Rd8 {[%clk 0:02:18]} 15. Bc4 {[%clk 0:02:37]}  Bg4 {[%clk 0:02:12]} 16. a3 {[%clk 0:02:31]}  Bxf3 {[%clk 0:02:10]} 17. gxf3 {[%clk 0:02:32]}  Ne5 {[%clk 0:02:07]} 18. Bd5 {[%clk 0:02:31]}  e6 {[%clk 0:02:03]} 19. Bxb7 {[%clk 0:02:20]}  Rab8 {[%clk 0:02:01]} 20. Rc7 {[%clk 0:02:20]}  Rd3+ {[%clk 0:01:58]} 21. Ke2 {[%clk 0:02:19]}  Rb3 {[%clk 0:01:52]} 22. Ba6 {[%clk 0:02:12]}  Rxb2+ {[%clk 0:01:50]} 23. Kf1 {[%clk 0:02:12]}  Nxf3 {[%clk 0:01:38]} 24. Kg2 {[%clk 0:02:12]}  R8b3 {[%clk 0:01:32]} 25. h4 {[%clk 0:02:08]}  Rxa3 {[%clk 0:01:24]} 26. Bc8 {[%clk 0:02:02]}  Nd4 {[%clk 0:01:07]} 27. h5 {[%clk 0:01:59]}  Raa2 {[%clk 0:00:58]} 28. h6+ {[%clk 0:01:58]}  Kf6 {[%clk 0:00:58]} 29. Rf1 {[%clk 0:01:58]}  Rc2 {[%clk 0:00:54]} 30. Rxc2 {[%clk 0:01:47]}  Rxc2 {[%clk 0:00:51]} 31. Ba6 {[%clk 0:01:47]}  Kg5 {[%clk 0:00:49]} 32. Kg3 {[%clk 0:01:42]}  Rc3+ {[%clk 0:00:45]} 33. f3 {[%clk 0:01:41]}  Kxh6 {[%clk 0:00:45]} 34. Kf4 {[%clk 0:01:41]}  Kg7 {[%clk 0:00:41]} 35. e5 {[%clk 0:01:37]}  Ra3 {[%clk 0:00:37]} 36. Bb7 {[%clk 0:01:37]}  Ne2+ {[%clk 0:00:36]} 37. Kg4 {[%clk 0:01:35]}  h5+ {[%clk 0:00:36]} 38. Kh4 {[%clk 0:01:34]}  Ra4+ {[%clk 0:00:36]} 39. Kh3 {[%clk 0:01:34]}  Ra5 {[%clk 0:00:34]} 40. Kh2 {[%clk 0:01:07]}  Rxe5 {[%clk 0:00:32]} 41. Re1 {[%clk 0:01:07]}  Kf6 {[%clk 0:00:33]} 42. Ra1 {[%clk 0:01:06]}  a5 {[%clk 0:00:31]} 43. Ra4 {[%clk 0:01:06]}  g5 {[%clk 0:00:30]} 44. Rc4 {[%clk 0:01:06]}  Nf4 {[%clk 0:00:29]} 45. Rc7 {[%clk 0:01:04]}  Re2+ {[%clk 0:00:29]} 46. Kg1 {[%clk 0:01:05]}  h4 {[%clk 0:00:28]} 47. Ba6 {[%clk 0:01:01]}  Re5 {[%clk 0:00:25]} 48. Rb7 {[%clk 0:01:00]}  a4 {[%clk 0:00:24]} 49. Bb5 {[%clk 0:01:00]}  a3 {[%clk 0:00:23]} 50. Be8 {[%clk 0:01:00]}  Re1+ {[%clk 0:00:19]} 51. Kh2 {[%clk 0:00:56]}  a2 {[%clk 0:00:18]} 52. Rxf7+ {[%clk 0:00:52]}  Ke5 {[%clk 0:00:19]} 0-1


[Site "https://www.chess.com"]

[Event "Titled Tuesday Blitz November 07 Early 2023"]
[White "Godzwon, Iwo"]
[Black "Czerw, Dawid"]
[WhiteFideId "21802483"]
[BlackFideId "1145746"]
[WhiteElo "2677"]
[BlackElo "2462"]
[Result "1-0"]
[Round "5"]
[TimeControl "180+1"]
[Date "2023.11.07"]
[WhiteClock "0:00:32"]
[BlackClock "0:00:07"]
[Board "99"]

1. Nf3 {[%clk 0:03:00]}  Nf6 {[%clk 0:02:59]} 2. c4 {[%clk 0:03:01]}  c6 {[%clk 0:02:59]} 3. e3 {[%clk 0:03:00]}  d5 {[%clk 0:02:59]} 4. b3 {[%clk 0:03:00]}  a6 {[%clk 0:02:59]} 5. Bb2 {[%clk 0:02:59]}  b5 {[%clk 0:02:59]} 6. Qc2 {[%clk 0:03:00]}  Bg4 {[%clk 0:02:58]} 7. Ne5 {[%clk 0:02:59]}  Bh5 {[%clk 0:02:58]} 8. f4 {[%clk 0:02:49]}  Nfd7 {[%clk 0:02:51]} 9. Qf5 {[%clk 0:02:33]}  Bg6 {[%clk 0:02:31]} 10. Nxg6 {[%clk 0:02:33]}  hxg6 {[%clk 0:02:31]} 11. Qc2 {[%clk 0:02:32]}  e6 {[%clk 0:02:28]} 12. Nc3 {[%clk 0:02:31]}  Be7 {[%clk 0:02:23]} 13. g3 {[%clk 0:02:25]}  O-O {[%clk 0:02:17]} 14. h4 {[%clk 0:02:21]}  f5 {[%clk 0:02:00]} 15. Be2 {[%clk 0:02:17]}  Nf6 {[%clk 0:01:58]} 16. h5 {[%clk 0:02:12]}  gxh5 {[%clk 0:01:51]} 17. Bxh5 {[%clk 0:02:13]}  Nxh5 {[%clk 0:01:48]} 18. Rxh5 {[%clk 0:02:12]}  Nd7 {[%clk 0:01:48]} 19. O-O-O {[%clk 0:01:59]}  Nf6 {[%clk 0:01:47]} 20. Rh3 {[%clk 0:01:57]}  a5 {[%clk 0:01:43]} 21. Rdh1 {[%clk 0:01:57]}  a4 {[%clk 0:01:36]} 22. cxb5 {[%clk 0:01:47]}  cxb5 {[%clk 0:01:32]} 23. Kb1 {[%clk 0:01:47]}  axb3 {[%clk 0:01:30]} 24. Qxb3 {[%clk 0:01:42]}  b4 {[%clk 0:01:28]} 25. Ne2 {[%clk 0:01:42]}  Ne4 {[%clk 0:01:13]} 26. Bc1 {[%clk 0:01:32]}  Bf6 {[%clk 0:01:02]} 27. d3 {[%clk 0:01:15]}  Ra3 {[%clk 0:00:44]} 28. Qc2 {[%clk 0:00:47]}  b3 {[%clk 0:00:37]} 29. Rh8+ {[%clk 0:00:39]}  Kf7 {[%clk 0:00:37]} 30. Rxf8+ {[%clk 0:00:39]}  Kxf8 {[%clk 0:00:23]} 31. Bxa3+ {[%clk 0:00:39]}  Kg8 {[%clk 0:00:16]} 32. axb3 {[%clk 0:00:38]}  Qa5 {[%clk 0:00:12]} 33. dxe4 {[%clk 0:00:31]}  Qxa3 {[%clk 0:00:07]} 34. e5 {[%clk 0:00:32]} 1-0


[Site "https://www.chess.com"]

[Event "Titled Tuesday Blitz November 07 Early 2023"]
[White "Mazurkiewicz, Michal"]
[Black "HamedWafa4"]
[WhiteFideId "1124943"]
[WhiteElo "2460"]
[BlackElo "2651"]
[Result "0-1"]
[Round "5"]
[TimeControl "180+1"]
[Date "2023.11.07"]
[WhiteClock "0:01:09"]
[BlackClock "0:02:30"]
[Board "100"]

1. e4 {[%clk 0:03:00]}  e5 {[%clk 0:02:58]} 2. Nf3 {[%clk 0:03:00]}  Nc6 {[%clk 0:02:57]} 3. Bb5 {[%clk 0:03:00]}  a6 {[%clk 0:02:57]} 4. Bxc6 {[%clk 0:03:01]}  dxc6 {[%clk 0:02:56]} 5. O-O {[%clk 0:03:01]}  Bg4 {[%clk 0:02:54]} 6. h3 {[%clk 0:03:02]}  Bh5 {[%clk 0:02:53]} 7. g4 {[%clk 0:02:52]}  Bg6 {[%clk 0:02:51]} 8. Nxe5 {[%clk 0:02:53]}  Bd6 {[%clk 0:02:50]} 9. Nxg6 {[%clk 0:02:53]}  hxg6 {[%clk 0:02:51]} 10. Kg2 {[%clk 0:02:53]}  Qd7 {[%clk 0:02:47]} 11. d4 {[%clk 0:02:46]}  O-O-O {[%clk 0:02:45]} 12. Qf3 {[%clk 0:02:37]}  f6 {[%clk 0:02:43]} 13. c3 {[%clk 0:02:19]}  Ne7 {[%clk 0:02:37]} 14. Bf4 {[%clk 0:02:16]}  Bxf4 {[%clk 0:02:33]} 15. Qxf4 {[%clk 0:02:12]}  g5 {[%clk 0:02:34]} 16. Qg3 {[%clk 0:01:37]}  Ng6 {[%clk 0:02:34]} 17. Rh1 {[%clk 0:01:27]}  Nf4+ {[%clk 0:02:32]} 18. Kf1 {[%clk 0:01:28]}  c5 {[%clk 0:02:31]} 19. d5 {[%clk 0:01:21]}  Qb5+ {[%clk 0:02:31]} 20. Kg1 {[%clk 0:01:09]}  Ne2+ {[%clk 0:02:30]} 0-1


[Site "https://www.chess.com"]

[Event "Titled Tuesday Blitz November 07 Early 2023"]
[White "Jesseinkman"]
[Black "Kuzhylnyi, Oleksandr"]
[BlackFideId "34110500"]
[WhiteElo "2450"]
[BlackElo "2636"]
[Result "0-1"]
[Round "5"]
[TimeControl "180+1"]
[Date "2023.11.07"]
[WhiteClock "0:00:04"]
[BlackClock "0:00:26"]
[Board "104"]

1. e4 {[%clk 0:02:56]}  g6 {[%clk 0:02:57]} 2. d4 {[%clk 0:02:54]}  Bg7 {[%clk 0:02:55]} 3. Nf3 {[%clk 0:02:53]}  d6 {[%clk 0:02:55]} 4. Nc3 {[%clk 0:02:52]}  a6 {[%clk 0:02:54]} 5. a4 {[%clk 0:02:52]}  Nc6 {[%clk 0:02:52]} 6. Be3 {[%clk 0:02:49]}  Bg4 {[%clk 0:02:45]} 7. d5 {[%clk 0:02:41]}  Ne5 {[%clk 0:02:43]} 8. Be2 {[%clk 0:02:39]}  Nxf3+ {[%clk 0:02:36]} 9. gxf3 {[%clk 0:02:37]}  Bh3 {[%clk 0:02:36]} 10. Bd4 {[%clk 0:02:31]}  Nf6 {[%clk 0:02:34]} 11. f4 {[%clk 0:02:31]}  O-O {[%clk 0:02:30]} 12. Bf3 {[%clk 0:02:26]}  Rc8 {[%clk 0:01:56]} 13. Qd3 {[%clk 0:02:13]}  c5 {[%clk 0:01:29]} 14. dxc6 {[%clk 0:02:10]}  bxc6 {[%clk 0:01:30]} 15. e5 {[%clk 0:01:39]}  dxe5 {[%clk 0:01:25]} 16. fxe5 {[%clk 0:01:22]}  Ng4 {[%clk 0:01:24]} 17. Qe4 {[%clk 0:01:00]}  c5 {[%clk 0:01:13]} 18. Bxg4 {[%clk 0:00:38]}  Bxg4 {[%clk 0:01:11]} 19. Bxc5 {[%clk 0:00:33]}  Rxc5 {[%clk 0:01:01]} 20. Qxg4 {[%clk 0:00:31]}  Bxe5 {[%clk 0:00:55]} 21. O-O {[%clk 0:00:25]}  Bxc3 {[%clk 0:00:47]} 22. bxc3 {[%clk 0:00:26]}  Rxc3 {[%clk 0:00:48]} 23. Rfd1 {[%clk 0:00:25]}  Qc8 {[%clk 0:00:45]} 24. Qxc8 {[%clk 0:00:22]}  Rfxc8 {[%clk 0:00:46]} 25. Rd7 {[%clk 0:00:23]}  Rxc2 {[%clk 0:00:39]} 26. Rxe7 {[%clk 0:00:23]}  Rc1+ {[%clk 0:00:40]} 27. Rxc1 {[%clk 0:00:23]}  Rxc1+ {[%clk 0:00:41]} 28. Kg2 {[%clk 0:00:24]}  Rc4 {[%clk 0:00:41]} 29. a5 {[%clk 0:00:21]}  Rc5 {[%clk 0:00:42]} 30. Re8+ {[%clk 0:00:19]}  Kg7 {[%clk 0:00:42]} 31. Ra8 {[%clk 0:00:20]}  Rxa5 {[%clk 0:00:42]} 32. Ra7 {[%clk 0:00:21]}  Ra3 {[%clk 0:00:42]} 33. Ra8 {[%clk 0:00:19]}  g5 {[%clk 0:00:42]} 34. Ra7 {[%clk 0:00:19]}  g4 {[%clk 0:00:40]} 35. Ra8 {[%clk 0:00:18]}  h5 {[%clk 0:00:40]} 36. Rb8 {[%clk 0:00:07]}  h4 {[%clk 0:00:30]} 37. Rb4 {[%clk 0:00:06]}  h3+ {[%clk 0:00:30]} 38. Kf1 {[%clk 0:00:06]}  f5 {[%clk 0:00:29]} 39. Rb6 {[%clk 0:00:04]}  Ra1+ {[%clk 0:00:27]} 40. Ke2 {[%clk 0:00:04]}  Rh1 {[%clk 0:00:27]} 41. Rxa6 {[%clk 0:00:04]}  Rxh2 {[%clk 0:00:28]} 42. Ra1 {[%clk 0:00:02]}  Rg2 {[%clk 0:00:26]} 43. Ra7+ {[%clk 0:00:02]}  Kg6 {[%clk 0:00:26]} 44. Ra6+ {[%clk 0:00:02]}  Kg5 {[%clk 0:00:26]} 45. Ra8 {[%clk 0:00:03]}  g3 {[%clk 0:00:23]} 46. Rg8+ {[%clk 0:00:03]}  Kf4 {[%clk 0:00:24]} 47. Kf1 {[%clk 0:00:03]}  Rxf2+ {[%clk 0:00:24]} 48. Kg1 {[%clk 0:00:04]}  h2+ {[%clk 0:00:24]} 49. Kh1 {[%clk 0:00:03]}  Rf1+ {[%clk 0:00:25]} 50. Kg2 {[%clk 0:00:04]}  h1=Q# {[%clk 0:00:26]} 0-1


[Site "https://www.chess.com"]

[Event "Titled Tuesday Blitz November 07 Early 2023"]
[White "Bodnaruk, Anastasia"]
[Black "WindWhistler11"]
[WhiteFideId "4181751"]
[WhiteElo "2605"]
[BlackElo "2438"]
[Result "1-0"]
[Round "5"]
[TimeControl "180+1"]
[Date "2023.11.07"]
[WhiteClock "0:00:09"]
[BlackClock "0:00:00"]
[Board "112"]

1. e4 {[%clk 0:03:00]}  e6 {[%clk 0:03:00]} 2. d4 {[%clk 0:03:00]}  d5 {[%clk 0:02:54]} 3. Nc3 {[%clk 0:02:59]}  Bb4 {[%clk 0:02:54]} 4. e5 {[%clk 0:02:59]}  Ne7 {[%clk 0:02:48]} 5. a3 {[%clk 0:02:58]}  Bxc3+ {[%clk 0:02:47]} 6. bxc3 {[%clk 0:02:57]}  c5 {[%clk 0:02:48]} 7. h4 {[%clk 0:02:56]}  Qa5 {[%clk 0:02:46]} 8. Bd2 {[%clk 0:02:52]}  Qa4 {[%clk 0:02:46]} 9. Nf3 {[%clk 0:02:51]}  Nbc6 {[%clk 0:02:44]} 10. Qb1 {[%clk 0:02:50]}  c4 {[%clk 0:02:43]} 11. h5 {[%clk 0:02:46]}  h6 {[%clk 0:02:42]} 12. g4 {[%clk 0:02:42]}  b6 {[%clk 0:02:16]} 13. g5 {[%clk 0:02:39]}  hxg5 {[%clk 0:02:14]} 14. Nxg5 {[%clk 0:02:31]}  Bd7 {[%clk 0:02:13]} 15. Be2 {[%clk 0:02:27]}  Nf5 {[%clk 0:02:08]} 16. Bg4 {[%clk 0:02:25]}  Nh6 {[%clk 0:02:08]} 17. Bh3 {[%clk 0:02:25]}  O-O-O {[%clk 0:02:06]} 18. f4 {[%clk 0:02:11]}  Kb7 {[%clk 0:01:59]} 19. Kd1 {[%clk 0:02:00]}  Rde8 {[%clk 0:01:53]} 20. Re1 {[%clk 0:01:58]}  Nd8 {[%clk 0:01:46]} 21. Qb4 {[%clk 0:01:55]}  Qxb4 {[%clk 0:01:37]} 22. cxb4 {[%clk 0:01:50]}  Re7 {[%clk 0:01:37]} 23. a4 {[%clk 0:01:45]}  a6 {[%clk 0:01:26]} 24. c3 {[%clk 0:01:42]}  f6 {[%clk 0:01:18]} 25. exf6 {[%clk 0:01:32]}  gxf6 {[%clk 0:01:18]} 26. Nf3 {[%clk 0:01:33]}  Be8 {[%clk 0:01:19]} 27. Kc2 {[%clk 0:01:26]}  Bxh5 {[%clk 0:01:18]} 28. Rf1 {[%clk 0:01:23]}  Bg6+ {[%clk 0:01:16]} 29. Kb2 {[%clk 0:01:22]}  Bd3 {[%clk 0:01:13]} 30. Rg1 {[%clk 0:01:14]}  Nhf7 {[%clk 0:01:06]} 31. Bf1 {[%clk 0:01:05]}  Be4 {[%clk 0:01:03]} 32. Be2 {[%clk 0:01:03]}  Nd6 {[%clk 0:00:58]} 33. Rg2 {[%clk 0:00:50]}  Rh3 {[%clk 0:00:55]} 34. Rf2 {[%clk 0:00:46]}  N8f7 {[%clk 0:00:53]} 35. Rg1 {[%clk 0:00:45]}  Nh6 {[%clk 0:00:46]} 36. Ne1 {[%clk 0:00:43]}  Nhf5 {[%clk 0:00:44]} 37. Rg8 {[%clk 0:00:41]}  Bd3 {[%clk 0:00:38]} 38. Bg4 {[%clk 0:00:37]}  Rh1 {[%clk 0:00:34]} 39. Rf8 {[%clk 0:00:25]}  Ne4 {[%clk 0:00:30]} 40. Rg2 {[%clk 0:00:19]}  Nh4 {[%clk 0:00:23]} 41. Rh8 {[%clk 0:00:17]}  Nxd2 {[%clk 0:00:10]} 42. Rxd2 {[%clk 0:00:16]}  Rxe1 {[%clk 0:00:05]} 43. Rxh4 {[%clk 0:00:16]}  Rb1+ {[%clk 0:00:05]} 44. Ka2 {[%clk 0:00:15]}  Rg7 {[%clk 0:00:04]} 45. Rxd3 {[%clk 0:00:10]}  cxd3 {[%clk 0:00:04]} 46. Kxb1 {[%clk 0:00:10]}  f5 {[%clk 0:00:04]} 47. Bd1 {[%clk 0:00:10]}  Rg2 {[%clk 0:00:03]} 48. Rh6 {[%clk 0:00:09]}  Rd2 {[%clk 0:00:02]} 49. Kc1 {[%clk 0:00:10]}  Ra2 {[%clk 0:00:02]} 50. Rxe6 {[%clk 0:00:10]}  Ra1+ {[%clk 0:00:02]} 51. Kd2 {[%clk 0:00:10]}  Kc7 {[%clk 0:00:03]} 52. Re7+ {[%clk 0:00:09]}  Kd6 {[%clk 0:00:00]} 53. Rf7 {[%clk 0:00:09]} 1-0


[Site "https://www.chess.com"]

[Event "Titled Tuesday Blitz November 07 Early 2023"]
[White "Su, Dion"]
[Black "Kononenko, Dmitry"]
[WhiteFideId "2029731"]
[BlackFideId "14113538"]
[WhiteElo "2422"]
[BlackElo "2595"]
[Result "0-1"]
[Round "5"]
[TimeControl "180+1"]
[Date "2023.11.07"]
[WhiteClock "0:00:27"]
[BlackClock "0:01:57"]
[Board "115"]

1. e4 {[%clk 0:03:00]}  c6 {[%clk 0:02:59]} 2. Nf3 {[%clk 0:03:00]}  d5 {[%clk 0:03:00]} 3. Nc3 {[%clk 0:03:01]}  Bg4 {[%clk 0:03:00]} 4. h3 {[%clk 0:03:01]}  Bxf3 {[%clk 0:02:59]} 5. Qxf3 {[%clk 0:03:02]}  e6 {[%clk 0:03:00]} 6. d3 {[%clk 0:03:02]}  Bc5 {[%clk 0:02:57]} 7. g3 {[%clk 0:03:02]}  Ne7 {[%clk 0:02:57]} 8. Bg2 {[%clk 0:03:02]}  Nd7 {[%clk 0:02:57]} 9. O-O {[%clk 0:03:02]}  O-O {[%clk 0:02:55]} 10. Qe2 {[%clk 0:03:01]}  Bd4 {[%clk 0:02:54]} 11. Kh2 {[%clk 0:03:01]}  g6 {[%clk 0:02:54]} 12. f4 {[%clk 0:03:01]}  Bg7 {[%clk 0:02:54]} 13. g4 {[%clk 0:02:48]}  f5 {[%clk 0:02:52]} 14. Re1 {[%clk 0:02:42]}  Rf7 {[%clk 0:02:48]} 15. Bd2 {[%clk 0:02:36]}  Nf6 {[%clk 0:02:43]} 16. exf5 {[%clk 0:02:31]}  exf5 {[%clk 0:02:42]} 17. g5 {[%clk 0:02:24]}  Nd7 {[%clk 0:02:37]} 18. Qe6 {[%clk 0:02:17]}  Nf8 {[%clk 0:02:35]} 19. Qe2 {[%clk 0:02:12]}  Nc8 {[%clk 0:02:33]} 20. h4 {[%clk 0:02:08]}  Re7 {[%clk 0:02:29]} 21. Qf3 {[%clk 0:02:07]}  Nd6 {[%clk 0:02:29]} 22. Rxe7 {[%clk 0:02:07]}  Qxe7 {[%clk 0:02:29]} 23. Re1 {[%clk 0:02:08]}  Qf7 {[%clk 0:02:27]} 24. Na4 {[%clk 0:02:01]}  Re8 {[%clk 0:02:25]} 25. b3 {[%clk 0:01:47]}  Nb5 {[%clk 0:02:17]} 26. c4 {[%clk 0:01:35]}  Nd4 {[%clk 0:02:14]} 27. Qf2 {[%clk 0:01:32]}  dxc4 {[%clk 0:02:09]} 28. dxc4 {[%clk 0:01:29]}  Rxe1 {[%clk 0:02:08]} 29. Qxe1 {[%clk 0:01:27]}  Nfe6 {[%clk 0:02:01]} 30. b4 {[%clk 0:01:11]}  Qc7 {[%clk 0:02:00]} 31. Kg3 {[%clk 0:01:04]}  h6 {[%clk 0:01:59]} 32. Nc5 {[%clk 0:00:40]}  Nxc5 {[%clk 0:01:59]} 33. bxc5 {[%clk 0:00:40]}  hxg5 {[%clk 0:01:59]} 34. hxg5 {[%clk 0:00:41]}  Kf7 {[%clk 0:01:58]} 35. Bc3 {[%clk 0:00:31]}  Ne6 {[%clk 0:01:58]} 36. Bxg7 {[%clk 0:00:29]}  Qxf4+ {[%clk 0:01:57]} 37. Kh3 {[%clk 0:00:27]}  Nxg5# {[%clk 0:01:57]} 0-1


[Site "https://www.chess.com"]

[Event "Titled Tuesday Blitz November 07 Early 2023"]
[White "Feuerstack, Aljoscha"]
[Black "Cristi_Coca"]
[WhiteFideId "4681932"]
[WhiteElo "2592"]
[BlackElo "2421"]
[Result "1-0"]
[Round "5"]
[TimeControl "180+1"]
[Date "2023.11.07"]
[WhiteClock "0:00:21"]
[BlackClock "0:00:17"]
[Board "116"]

1. e4 {[%clk 0:03:00]}  c5 {[%clk 0:02:58]} 2. Nf3 {[%clk 0:03:00]}  e6 {[%clk 0:02:59]} 3. g3 {[%clk 0:02:59]}  Nc6 {[%clk 0:02:58]} 4. Bg2 {[%clk 0:02:59]}  a6 {[%clk 0:02:59]} 5. O-O {[%clk 0:02:56]}  b5 {[%clk 0:02:59]} 6. Re1 {[%clk 0:02:47]}  Bb7 {[%clk 0:02:55]} 7. c3 {[%clk 0:02:45]}  Nf6 {[%clk 0:02:44]} 8. d4 {[%clk 0:02:38]}  cxd4 {[%clk 0:02:44]} 9. cxd4 {[%clk 0:02:39]}  d5 {[%clk 0:02:44]} 10. exd5 {[%clk 0:01:50]}  Nxd5 {[%clk 0:02:45]} 11. Nc3 {[%clk 0:01:50]}  Nxc3 {[%clk 0:02:40]} 12. bxc3 {[%clk 0:01:51]}  Be7 {[%clk 0:02:39]} 13. Ne5 {[%clk 0:01:47]}  Rc8 {[%clk 0:02:19]} 14. Qg4 {[%clk 0:01:22]}  Nxe5 {[%clk 0:01:53]} 15. dxe5 {[%clk 0:01:22]}  Bxg2 {[%clk 0:01:53]} 16. Qxg7 {[%clk 0:01:23]}  Rf8 {[%clk 0:01:49]} 17. Kxg2 {[%clk 0:01:23]}  Rxc3 {[%clk 0:01:37]} 18. Qxh7 {[%clk 0:01:21]}  Bg5 {[%clk 0:01:32]} 19. Qe4 {[%clk 0:01:04]}  Rc4 {[%clk 0:01:12]} 20. Qb7 {[%clk 0:01:00]}  Rh8 {[%clk 0:00:52]} 21. Bxg5 {[%clk 0:00:38]}  Qxg5 {[%clk 0:00:51]} 22. Qxa6 {[%clk 0:00:36]}  Rch4 {[%clk 0:00:37]} 23. Qc8+ {[%clk 0:00:23]}  Ke7 {[%clk 0:00:35]} 24. Qc5+ {[%clk 0:00:23]}  Ke8 {[%clk 0:00:35]} 25. Qc6+ {[%clk 0:00:18]}  Kf8 {[%clk 0:00:31]} 26. Qc5+ {[%clk 0:00:19]}  Kg7 {[%clk 0:00:31]} 27. Rh1 {[%clk 0:00:19]}  Qg4 {[%clk 0:00:30]} 28. Qe3 {[%clk 0:00:19]}  Rh3 {[%clk 0:00:18]} 29. Rad1 {[%clk 0:00:17]}  Qh5 {[%clk 0:00:18]} 30. Rd4 {[%clk 0:00:15]}  Rxh2+ {[%clk 0:00:17]} 31. Rxh2 {[%clk 0:00:16]}  Qxh2+ {[%clk 0:00:18]} 32. Kf3 {[%clk 0:00:17]}  Rh5 {[%clk 0:00:15]} 33. Rg4+ {[%clk 0:00:16]}  Kh7 {[%clk 0:00:14]} 34. Qf4 {[%clk 0:00:16]}  Rf5 {[%clk 0:00:14]} 35. Rh4+ {[%clk 0:00:15]}  Qxh4 {[%clk 0:00:14]} 36. gxh4 {[%clk 0:00:16]}  Rxf4+ {[%clk 0:00:14]} 37. Kxf4 {[%clk 0:00:17]}  Kg6 {[%clk 0:00:14]} 38. Kg4 {[%clk 0:00:17]}  Kh6 {[%clk 0:00:15]} 39. h5 {[%clk 0:00:17]}  b4 {[%clk 0:00:15]} 40. Kh4 {[%clk 0:00:17]}  Kh7 {[%clk 0:00:15]} 41. Kg5 {[%clk 0:00:18]}  Kg7 {[%clk 0:00:16]} 42. h6+ {[%clk 0:00:18]}  Kh7 {[%clk 0:00:17]} 43. f3 {[%clk 0:00:18]}  Kg8 {[%clk 0:00:17]} 44. Kf6 {[%clk 0:00:18]}  Kh8 {[%clk 0:00:17]} 45. Kxf7 {[%clk 0:00:18]}  b3 {[%clk 0:00:17]} 46. axb3 {[%clk 0:00:18]}  Kh7 {[%clk 0:00:18]} 47. b4 {[%clk 0:00:19]}  Kxh6 {[%clk 0:00:18]} 48. b5 {[%clk 0:00:20]}  Kg5 {[%clk 0:00:17]} 49. b6 {[%clk 0:00:21]} 1-0


[Site "https://www.chess.com"]